[Event "***Titled Tuesday 3|2 Blitz"]
[Site "Chess.com"]
[Date "2017.02.07"]
[Round "5"]
[White "Hamisandwich"]
[Black "jcibarra"]
[Result "0-1"]
[WhiteElo "2423"]
[BlackElo "2635"]
[TimeControl "180+2"]
[EndTime "14:12:45 PST"]
[Termination "jcibarra won by checkmate"]

1. a3 {[%clk 0:03:02]} 1... a5 {[%clk 0:02:56.2]} 2. d4 {[%clk 0:03:00.7]} 2...
d5 {[%clk 0:02:56.5]} 3. c4 {[%clk 0:02:58.5]} 3... e6 {[%clk 0:02:54.5]} 4. Nc3
{[%clk 0:02:56.5]} 4... Nf6 {[%clk 0:02:53.8]} 5. Bf4 {[%clk 0:02:52.1]} 5... c6
{[%clk 0:02:51.8]} 6. e3 {[%clk 0:02:50.9]} 6... Nbd7 {[%clk 0:02:48.8]} 7. h3
{[%clk 0:02:48.2]} 7... Be7 {[%clk 0:02:48.1]} 8. Nf3 {[%clk 0:02:48]} 8... O-O
{[%clk 0:02:49]} 9. Qc2 {[%clk 0:02:47.7]} 9... b6 {[%clk 0:02:46.3]} 10. cxd5
{[%clk 0:02:36.8]} 10... exd5 {[%clk 0:02:43.8]} 11. Bd3 {[%clk 0:02:31]} 11...
Ba6 {[%clk 0:02:44.5]} 12. O-O {[%clk 0:02:31.6]} 12... Re8 {[%clk 0:02:39]} 13.
Rac1 {[%clk 0:02:27]} 13... Bf8 {[%clk 0:02:22.8]} 14. Ne5 {[%clk 0:02:07]}
14... Nxe5 {[%clk 0:02:19.8]} 15. Bxe5 {[%clk 0:02:08.9]} 15... Bxd3 {[%clk
0:02:19.4]} 16. Qxd3 {[%clk 0:02:10.8]} 16... Nd7 {[%clk 0:02:09.6]} 17. Bf4
{[%clk 0:02:07.7]} 17... Nf6 {[%clk 0:02:10.7]} 18. Na4 {[%clk 0:01:52.2]} 18...
Re6 {[%clk 0:02:05.5]} 19. Rc2 {[%clk 0:01:43.9]} 19... Ne4 {[%clk 0:01:53.7]}
20. Rfc1 {[%clk 0:01:44.3]} 20... b5 {[%clk 0:01:51.7]} 21. Nc3 {[%clk
0:01:45.9]} 21... Qd7 {[%clk 0:01:49.7]} 22. Nb1 {[%clk 0:00:49.9]} 22... Rg6
{[%clk 0:01:44.5]} 23. f3 {[%clk 0:00:49.1]} 23... Ng5 {[%clk 0:01:36.9]} 24.
Bxg5 {[%clk 0:00:19.4]} 24... Rxg5 {[%clk 0:01:38.8]} 25. Rxc6 {[%clk 0:00:19]}
25... Qxh3 {[%clk 0:01:38.2]} 26. R1c2 {[%clk 0:00:18.8]} 26... Qxf3 {[%clk
0:01:36.9]} 27. Rf2 {[%clk 0:00:16.8]} 27... Qg3 {[%clk 0:01:30.9]} 28. Nd2
{[%clk 0:00:17.8]} 28... Re8 {[%clk 0:01:26.9]} 29. Nf1 {[%clk 0:00:18.8]} 29...
Qh4 {[%clk 0:01:20.2]} 30. Qxb5 {[%clk 0:00:19.5]} 30... Rh5 {[%clk 0:01:18.7]}
31. Rf3 {[%clk 0:00:21]} 31... Qh1+ {[%clk 0:01:17.3]} 32. Kf2 {[%clk
0:00:22.2]} 32... Rg5 {[%clk 0:01:17.4]} 33. g3 {[%clk 0:00:18.1]} 33... Qh5
{[%clk 0:00:56.9]} 34. Rh6 {[%clk 0:00:07.4]} 34... Qxh6 {[%clk 0:00:49.4]} 35.
Qxe8 {[%clk 0:00:08.8]} 35... Qg6 {[%clk 0:00:50.8]} 36. b4 {[%clk 0:00:07.5]}
36... axb4 {[%clk 0:00:49.4]} 37. axb4 {[%clk 0:00:09.4]} 37... h5 {[%clk
0:00:48.2]} 38. b5 {[%clk 0:00:10.7]} 38... h4 {[%clk 0:00:45.4]} 39. Qc6 {[%clk
0:00:10.5]} 39... Qh5 {[%clk 0:00:39.6]} 40. b6 {[%clk 0:00:07.1]} 40... hxg3+
{[%clk 0:00:40]} 41. Rxg3 {[%clk 0:00:09]} 41... Rf5+ {[%clk 0:00:34.7]} 42. Ke1
{[%clk 0:00:09.1]} 42... Qh1 {[%clk 0:00:29.7]} 43. Qb5 {[%clk 0:00:10.1]} 43...
Bb4+ {[%clk 0:00:22.1]} 44. Qxb4 {[%clk 0:00:11]} 44... Qxf1+ {[%clk 0:00:21.7]}
45. Kd2 {[%clk 0:00:11.2]} 45... Rf2+ {[%clk 0:00:23.6]} 46. Kc3 {[%clk
0:00:09.7]} 46... Qc1+ {[%clk 0:00:25]} 47. Kb3 {[%clk 0:00:11.2]} 47... Qc2+
{[%clk 0:00:26.3]} 48. Ka3 {[%clk 0:00:12.2]} 48... Qa2# {[%clk 0:00:28.2]} 0-1

[Event "***Titled Tuesday 3|2 Blitz"]
[Site "Chess.com"]
[Date "2017.02.07"]
[Round "5"]
[White "gmwesley_so"]
[Black "E-Shaposhnikov"]
[Result "0-1"]
[WhiteElo "2743"]
[BlackElo "2763"]
[TimeControl "180+2"]
[EndTime "14:12:57 PST"]
[Termination "E-Shaposhnikov won by resignation"]

1. e4 {[%clk 0:03:02]} 1... c5 {[%clk 0:03:00.7]} 2. Nf3 {[%clk 0:03:01.7]} 2...
e6 {[%clk 0:03:01.7]} 3. d4 {[%clk 0:03:01.8]} 3... cxd4 {[%clk 0:03:02.6]} 4.
Nxd4 {[%clk 0:03:03.7]} 4... a6 {[%clk 0:03:03.9]} 5. Bd3 {[%clk 0:03:04.1]}
5... Ne7 {[%clk 0:03:04.2]} 6. O-O {[%clk 0:03:04.7]} 6... Nbc6 {[%clk
0:03:04.4]} 7. Nb3 {[%clk 0:03:04.9]} 7... Ng6 {[%clk 0:03:04]} 8. f4 {[%clk
0:03:05.8]} 8... Be7 {[%clk 0:02:53.2]} 9. Be3 {[%clk 0:03:04.2]} 9... O-O
{[%clk 0:02:53.6]} 10. N1d2 {[%clk 0:03:04.1]} 10... e5 {[%clk 0:02:41.9]} 11.
f5 {[%clk 0:03:03.2]} 11... Nf4 {[%clk 0:02:43.4]} 12. Bxf4 {[%clk 0:02:58.7]}
12... exf4 {[%clk 0:02:45.2]} 13. Rxf4 {[%clk 0:03:00.4]} 13... Bf6 {[%clk
0:02:39.9]} 14. c3 {[%clk 0:02:56.5]} 14... Ne5 {[%clk 0:02:40.2]} 15. Nc4
{[%clk 0:02:55.1]} 15... b5 {[%clk 0:02:31.5]} 16. Nxe5 {[%clk 0:02:42.4]} 16...
Bxe5 {[%clk 0:02:33.4]} 17. Rg4 {[%clk 0:02:40.7]} 17... h5 {[%clk 0:02:23.8]}
18. Rg3 {[%clk 0:02:36.6]} 18... Bxg3 {[%clk 0:02:23.4]} 19. hxg3 {[%clk
0:02:38.5]} 19... Qg5 {[%clk 0:02:24.9]} 20. Qf3 {[%clk 0:02:34.5]} 20... Rb8
{[%clk 0:02:15.9]} 21. Qf4 {[%clk 0:02:29.4]} 21... Qxf4 {[%clk 0:02:13.6]} 22.
gxf4 {[%clk 0:02:31.3]} 22... d6 {[%clk 0:02:14.9]} 23. Kf2 {[%clk 0:02:30.7]}
23... Re8 {[%clk 0:02:05.9]} 24. Rh1 {[%clk 0:02:18.5]} 24... Bb7 {[%clk
0:02:06.1]} 25. Nd2 {[%clk 0:02:18.2]} 25... g6 {[%clk 0:02:02.3]} 26. fxg6
{[%clk 0:02:12.4]} 26... fxg6 {[%clk 0:02:04.2]} 27. g4 {[%clk 0:02:13.8]} 27...
hxg4 {[%clk 0:01:55.9]} 28. Rg1 {[%clk 0:02:14.8]} 28... Kf7 {[%clk 0:01:54.7]}
29. Rxg4 {[%clk 0:02:15.1]} 29... Rh8 {[%clk 0:01:49.9]} 30. Nf3 {[%clk
0:02:16.2]} 30... Rh6 {[%clk 0:01:46.3]} 31. Ke3 {[%clk 0:02:11.5]} 31... Re8
{[%clk 0:01:40.9]} 32. Rg1 {[%clk 0:02:06.8]} 32... Kf6 {[%clk 0:01:40]} 33. Kd4
{[%clk 0:02:07.2]} 33... Rh3 {[%clk 0:01:30.4]} 34. Rf1 {[%clk 0:01:32.8]} 34...
Rd8 {[%clk 0:01:17.2]} 35. Bb1 {[%clk 0:01:33]} 35... Rg3 {[%clk 0:01:17.4]} 36.
Rf2 {[%clk 0:01:32.6]} 36... Ke7 {[%clk 0:01:12.6]} 37. Ng5 {[%clk 0:01:29.2]}
37... Rf8 {[%clk 0:01:10.3]} 38. Rh2 {[%clk 0:00:50.5]} 38... Rxf4 {[%clk
0:01:08]} 39. Rh7+ {[%clk 0:00:52]} 39... Kf6 {[%clk 0:01:06.8]} 40. Rxb7 {[%clk
0:00:50.6]} 40... Kxg5 {[%clk 0:01:00.9]} 41. Kd5 {[%clk 0:00:49.8]} 41... Rg1
{[%clk 0:00:56.9]} 42. Bc2 {[%clk 0:00:48.1]} 42... Rg2 {[%clk 0:00:54.4]} 43.
Bb3 {[%clk 0:00:48.4]} 43... Rd2+ {[%clk 0:00:54.8]} 44. Kc6 {[%clk 0:00:48.2]}
44... Rxe4 {[%clk 0:00:54]} 45. Kb6 {[%clk 0:00:48]} 45... Rxb2 {[%clk
0:00:40.5]} 46. Kxa6 {[%clk 0:00:48]} 46... Re5 {[%clk 0:00:35.2]} 47. Rxb5
{[%clk 0:00:31.2]} 47... Rxb5 {[%clk 0:00:33.2]} 48. Kxb5 {[%clk 0:00:33.1]}
48... Kf4 {[%clk 0:00:31.8]} 49. Kc6 {[%clk 0:00:34.3]} 49... Ke5 {[%clk
0:00:30.8]} 50. Bf7 {[%clk 0:00:31]} 50... g5 {[%clk 0:00:30.7]} 51. a4 {[%clk
0:00:32.3]} 51... Rc2 {[%clk 0:00:19.7]} 52. c4 {[%clk 0:00:32.7]} 52... Ra2
{[%clk 0:00:19.7]} 53. Kb5 {[%clk 0:00:33.5]} 53... g4 {[%clk 0:00:19.5]} 54. a5
{[%clk 0:00:34.9]} 54... g3 {[%clk 0:00:20.2]} 55. c5 {[%clk 0:00:33.8]} 55...
Rb2+ {[%clk 0:00:20.1]} 0-1

[Event "***Titled Tuesday 3|2 Blitz"]
[Site "Chess.com"]
[Date "2017.02.07"]
[Round "5"]
[White "Yaacovn"]
[Black "GianmarcoVaR"]
[Result "1-0"]
[WhiteElo "2590"]
[BlackElo "2399"]
[TimeControl "180+2"]
[EndTime "14:13:05 PST"]
[Termination "Yaacovn won by resignation"]

1. d4 {[%clk 0:01:39.4]} 1... Nf6 {[%clk 0:02:53.9]} 2. Nf3 {[%clk 0:01:39]}
2... e6 {[%clk 0:02:53.8]} 3. c4 {[%clk 0:01:39.7]} 3... b6 {[%clk 0:02:53.1]}
4. g3 {[%clk 0:01:40.4]} 4... Bb7 {[%clk 0:02:52.4]} 5. Bg2 {[%clk 0:01:41.3]}
5... Bb4+ {[%clk 0:02:54.1]} 6. Bd2 {[%clk 0:01:41.2]} 6... c5 {[%clk
0:02:55.5]} 7. O-O {[%clk 0:01:41.4]} 7... O-O {[%clk 0:02:56.6]} 8. a3 {[%clk
0:01:13.8]} 8... Bxd2 {[%clk 0:02:55.9]} 9. Qxd2 {[%clk 0:01:14.5]} 9... cxd4
{[%clk 0:02:50.7]} 10. Nxd4 {[%clk 0:01:13.2]} 10... Bxg2 {[%clk 0:02:49.7]} 11.
Kxg2 {[%clk 0:01:13.7]} 11... Qc7 {[%clk 0:02:50.9]} 12. Rc1 {[%clk 0:01:12.9]}
12... a6 {[%clk 0:02:51.1]} 13. b3 {[%clk 0:01:11.6]} 13... Nc6 {[%clk
0:02:49.9]} 14. Nc3 {[%clk 0:01:12.1]} 14... Rab8 {[%clk 0:02:38.4]} 15. Kg1
{[%clk 0:01:11.8]} 15... Rfc8 {[%clk 0:02:33]} 16. Rab1 {[%clk 0:01:09.5]} 16...
Nxd4 {[%clk 0:02:22.9]} 17. Qxd4 {[%clk 0:01:09.8]} 17... Qc5 {[%clk 0:02:05]}
18. Qxc5 {[%clk 0:00:53.1]} 18... bxc5 {[%clk 0:02:06.9]} 19. e4 {[%clk
0:00:53.8]} 19... Kf8 {[%clk 0:01:58.2]} 20. e5 {[%clk 0:00:53.5]} 20... Ng4
{[%clk 0:01:58.5]} 21. Re1 {[%clk 0:00:48.8]} 21... f6 {[%clk 0:01:55.6]} 22. f4
{[%clk 0:00:46]} 22... Rc6 {[%clk 0:01:50.3]} 23. h3 {[%clk 0:00:46.7]} 23...
Nh6 {[%clk 0:01:50.6]} 24. Ne4 {[%clk 0:00:30.3]} 24... Ke7 {[%clk 0:01:49.2]}
25. g4 {[%clk 0:00:29.5]} 25... f5 {[%clk 0:01:47.7]} 26. Nf2 {[%clk 0:00:28.7]}
26... fxg4 {[%clk 0:01:41.1]} 27. hxg4 {[%clk 0:00:29.4]} 27... Rcb6 {[%clk
0:01:41]} 28. Re3 {[%clk 0:00:28.9]} 28... Nf7 {[%clk 0:01:41.8]} 29. g5 {[%clk
0:00:28.5]} 29... d5 {[%clk 0:01:34.3]} 30. exd6+ {[%clk 0:00:28.7]} 30... Nxd6
{[%clk 0:01:35.4]} 31. Rd3 {[%clk 0:00:27.8]} 31... Nxc4 {[%clk 0:01:33.4]} 32.
Rc1 {[%clk 0:00:24.3]} 32... Nxa3 {[%clk 0:00:47.8]} 33. Rxc5 {[%clk 0:00:24.1]}
33... Nb5 {[%clk 0:00:49.4]} 34. Ng4 {[%clk 0:00:22.9]} 34... Rd6 {[%clk
0:00:47.7]} 35. Re3 {[%clk 0:00:21.5]} 35... Rd4 {[%clk 0:00:47.3]} 36. Ne5
{[%clk 0:00:18.9]} 36... Kd6 {[%clk 0:00:42.4]} 37. Rc6+ {[%clk 0:00:19.1]}
37... Kd5 {[%clk 0:00:43.4]} 38. Rxa6 {[%clk 0:00:16.5]} 38... Rxf4 {[%clk
0:00:42.9]} 39. Nc6 {[%clk 0:00:15.6]} 39... Re8 {[%clk 0:00:36.9]} 40. Re5+
{[%clk 0:00:08.7]} 40... Kd6 {[%clk 0:00:26.6]} 41. Rxb5 {[%clk 0:00:09.4]}
41... Ref8 {[%clk 0:00:21.5]} 42. Ne5+ {[%clk 0:00:09.9]} 42... Kc7 {[%clk
0:00:20.5]} 43. Rc6+ {[%clk 0:00:09.8]} 43... Kd8 {[%clk 0:00:19.7]} 44. Rb8+
{[%clk 0:00:10.2]} 44... Ke7 {[%clk 0:00:21]} 45. Rb7+ {[%clk 0:00:10.7]} 45...
Kd8 {[%clk 0:00:21.9]} 46. Rcc7 {[%clk 0:00:09.8]} 46... Rf1+ {[%clk 0:00:20.9]}
47. Kg2 {[%clk 0:00:10.6]} 47... R1f5 {[%clk 0:00:15.5]} 48. Nc6+ {[%clk
0:00:09.9]} 1-0

[Event "***Titled Tuesday 3|2 Blitz"]
[Site "Chess.com"]
[Date "2017.02.07"]
[Round "5"]
[White "BilodeauA"]
[Black "Keranke"]
[Result "1-0"]
[WhiteElo "2592"]
[BlackElo "2652"]
[TimeControl "180+2"]
[EndTime "14:13:07 PST"]
[Termination "BilodeauA won by resignation"]

1. e4 {[%clk 0:03:02]} 1... g6 {[%clk 0:03:00.6]} 2. d4 {[%clk 0:03:02.4]} 2...
Bg7 {[%clk 0:03:01.1]} 3. Nc3 {[%clk 0:03:03.1]} 3... d6 {[%clk 0:03:01.9]} 4.
f4 {[%clk 0:03:03.5]} 4... a6 {[%clk 0:03:03.2]} 5. Nf3 {[%clk 0:03:04.2]} 5...
b5 {[%clk 0:03:04.6]} 6. Bd3 {[%clk 0:03:05.4]} 6... Nd7 {[%clk 0:03:06]} 7. O-O
{[%clk 0:03:04.6]} 7... c5 {[%clk 0:03:07]} 8. a4 {[%clk 0:02:45.2]} 8... b4
{[%clk 0:03:04.6]} 9. Ne2 {[%clk 0:02:46.3]} 9... Bb7 {[%clk 0:03:03.5]} 10. c3
{[%clk 0:02:47.4]} 10... Ngf6 {[%clk 0:02:51.7]} 11. Ng3 {[%clk 0:02:45.8]}
11... O-O {[%clk 0:02:52.9]} 12. f5 {[%clk 0:02:40.8]} 12... Rc8 {[%clk
0:02:07.4]} 13. Bg5 {[%clk 0:02:21]} 13... Qa5 {[%clk 0:02:02.3]} 14. d5 {[%clk
0:01:33.7]} 14... bxc3 {[%clk 0:01:48.8]} 15. bxc3 {[%clk 0:01:34.9]} 15... c4
{[%clk 0:01:44.1]} 16. Bc2 {[%clk 0:01:27.6]} 16... Qxc3 {[%clk 0:01:44.8]} 17.
Bd2 {[%clk 0:01:22.2]} 17... Qxa1 {[%clk 0:01:31.5]} 18. Qxa1 {[%clk 0:01:22.3]}
18... Nxe4 {[%clk 0:01:33.4]} 19. Qb1 {[%clk 0:01:18.4]} 19... Nxd2 {[%clk
0:01:34.6]} 20. Nxd2 {[%clk 0:01:18.8]} 20... Bxd5 {[%clk 0:01:35.7]} 21. fxg6
{[%clk 0:01:19.8]} 21... hxg6 {[%clk 0:01:36.4]} 22. Nf3 {[%clk 0:01:14.3]}
22... Rb8 {[%clk 0:01:24.3]} 23. Qd1 {[%clk 0:01:14.5]} 23... e6 {[%clk
0:01:23.4]} 24. h4 {[%clk 0:01:15.3]} 24... Ne5 {[%clk 0:01:16.9]} 25. Nxe5
{[%clk 0:01:10.1]} 25... Bxe5 {[%clk 0:01:18.8]} 26. Qg4 {[%clk 0:01:08]} 26...
Rb2 {[%clk 0:01:06.2]} 27. Be4 {[%clk 0:01:03.6]} 27... Bxe4 {[%clk 0:00:54.8]}
28. Nxe4 {[%clk 0:01:00.9]} 28... c3 {[%clk 0:00:55.7]} 29. h5 {[%clk
0:00:43.3]} 29... Kg7 {[%clk 0:00:27.8]} 30. hxg6 {[%clk 0:00:32.5]} 30... f5
{[%clk 0:00:28.7]} 31. Qh4 {[%clk 0:00:30.2]} 31... Kxg6 {[%clk 0:00:29.7]} 32.
Qg5+ {[%clk 0:00:16.4]} 32... Kf7 {[%clk 0:00:30.6]} 33. Qh5+ {[%clk 0:00:16]}
33... Ke7 {[%clk 0:00:31.2]} 34. Qg5+ {[%clk 0:00:16.5]} 34... Kd7 {[%clk
0:00:22.8]} 35. Qe3 {[%clk 0:00:17.5]} 35... Rc8 {[%clk 0:00:12.4]} 36. Nf2
{[%clk 0:00:12.6]} 36... c2 {[%clk 0:00:10.9]} 37. Nd3 {[%clk 0:00:13.9]} 37...
Rb1 {[%clk 0:00:12.1]} 38. Nxe5+ {[%clk 0:00:15.1]} 38... dxe5 {[%clk
0:00:13.3]} 39. Qd3+ {[%clk 0:00:16.8]} 39... Ke7 {[%clk 0:00:14.5]} 40. Rxb1
{[%clk 0:00:18.7]} 40... cxb1=Q+ {[%clk 0:00:14.7]} 41. Qxb1 {[%clk 0:00:20.6]}
41... Kf6 {[%clk 0:00:16.6]} 42. a5 {[%clk 0:00:21.6]} 42... e4 {[%clk
0:00:15.7]} 43. Qb7 {[%clk 0:00:22.4]} 43... Rc2 {[%clk 0:00:15.4]} 44. Qxa6
{[%clk 0:00:22.5]} 44... e3 {[%clk 0:00:16.9]} 45. Qd3 {[%clk 0:00:21.8]} 45...
Ra2 {[%clk 0:00:15.7]} 46. Qxe3 {[%clk 0:00:20.6]} 46... e5 {[%clk 0:00:07.5]}
47. Qb6+ {[%clk 0:00:20.8]} 47... Kg5 {[%clk 0:00:08.8]} 48. a6 {[%clk
0:00:21.5]} 48... Kg4 {[%clk 0:00:09.9]} 49. Kh2 {[%clk 0:00:22.2]} 49... f4
{[%clk 0:00:10.8]} 50. Qb7 {[%clk 0:00:21.5]} 50... e4 {[%clk 0:00:11.2]} 51.
Qxe4 {[%clk 0:00:20.8]} 51... Rxa6 {[%clk 0:00:11.3]} 52. Qe2+ {[%clk
0:00:21.9]} 1-0

[Event "***Titled Tuesday 3|2 Blitz"]
[Site "Chess.com"]
[Date "2017.02.07"]
[Round "5"]
[White "aa175"]
[Black "Daniela_Movileanu"]
[Result "0-1"]
[WhiteElo "1909"]
[BlackElo "2075"]
[TimeControl "180+2"]
[EndTime "14:13:09 PST"]
[Termination "Daniela_Movileanu won by checkmate"]

1. e4 {[%clk 0:03:02]} 1... c5 {[%clk 0:02:59.9]} 2. Nf3 {[%clk 0:02:58]} 2...
d6 {[%clk 0:02:57.6]} 3. d4 {[%clk 0:02:55.3]} 3... Nf6 {[%clk 0:02:58.6]} 4.
dxc5 {[%clk 0:02:52.8]} 4... Nxe4 {[%clk 0:02:58.8]} 5. c3 {[%clk 0:02:45.4]}
5... Nxc5 {[%clk 0:02:53.3]} 6. Bc4 {[%clk 0:02:40.1]} 6... e6 {[%clk
0:02:48.5]} 7. O-O {[%clk 0:02:38.8]} 7... Nc6 {[%clk 0:02:46.7]} 8. Nbd2 {[%clk
0:02:28.8]} 8... Be7 {[%clk 0:02:46.7]} 9. Nd4 {[%clk 0:02:22.4]} 9... O-O
{[%clk 0:02:41.4]} 10. b4 {[%clk 0:02:06]} 10... Nd7 {[%clk 0:02:33.4]} 11. Bxe6
{[%clk 0:01:56.2]} 11... fxe6 {[%clk 0:02:02.4]} 12. Nxe6 {[%clk 0:01:56.8]}
12... Qb6 {[%clk 0:02:03.1]} 13. Nxf8 {[%clk 0:01:53.3]} 13... Nxf8 {[%clk
0:02:02.8]} 14. Nc4 {[%clk 0:01:52.4]} 14... Qc7 {[%clk 0:02:03.3]} 15. Bf4
{[%clk 0:01:50.4]} 15... Ne5 {[%clk 0:01:48.8]} 16. Nxe5 {[%clk 0:01:37.4]}
16... dxe5 {[%clk 0:01:45.2]} 17. Qd5+ {[%clk 0:01:38.2]} 17... Be6 {[%clk
0:01:42.8]} 18. Qxe5 {[%clk 0:01:35.8]} 18... Qxe5 {[%clk 0:01:42.7]} 19. Bxe5
{[%clk 0:01:37]} 19... Rc8 {[%clk 0:01:44.1]} 20. Bd4 {[%clk 0:01:33.2]} 20...
Rc4 {[%clk 0:01:32]} 21. Rfe1 {[%clk 0:01:25.9]} 21... Bxb4 {[%clk 0:01:28.9]}
22. Rac1 {[%clk 0:00:56.9]} 22... Ba3 {[%clk 0:01:26.3]} 23. Rc2 {[%clk
0:00:55.2]} 23... b5 {[%clk 0:01:14.6]} 24. Bxa7 {[%clk 0:00:48.9]} 24... Ra4
{[%clk 0:01:04.8]} 25. Bd4 {[%clk 0:00:43.5]} 25... Bd6 {[%clk 0:01:03.2]} 26.
g3 {[%clk 0:00:24.1]} 26... Bxa2 {[%clk 0:00:59.8]} 27. Ra1 {[%clk 0:00:22.4]}
27... Bb3 {[%clk 0:00:59.7]} 28. Rxa4 {[%clk 0:00:22.4]} 28... Bxa4 {[%clk
0:00:58.8]} 29. Rb2 {[%clk 0:00:20.8]} 29... Ne6 {[%clk 0:00:58.8]} 30. Bb6
{[%clk 0:00:18.8]} 30... Bc5 {[%clk 0:00:57.3]} 31. Bxc5 {[%clk 0:00:18.6]}
31... Nxc5 {[%clk 0:00:59.2]} 32. Kg2 {[%clk 0:00:18]} 32... Kf7 {[%clk
0:00:59.9]} 33. Kf3 {[%clk 0:00:18.4]} 33... Ke6 {[%clk 0:01:00.6]} 34. Ke3
{[%clk 0:00:19.7]} 34... Kd5 {[%clk 0:01:00.9]} 35. f3 {[%clk 0:00:17.5]} 35...
Kc4 {[%clk 0:00:59.8]} 36. Kd2 {[%clk 0:00:13.9]} 36... Nb3+ {[%clk 0:00:59]}
37. Kc2 {[%clk 0:00:12.8]} 37... Nd4+ {[%clk 0:00:58.2]} 38. Kd2 {[%clk
0:00:13.7]} 38... Nxf3+ {[%clk 0:00:59]} 39. Ke3 {[%clk 0:00:14.4]} 39... Ne5
{[%clk 0:00:57.8]} 40. Kd2 {[%clk 0:00:14.2]} 40... Nf3+ {[%clk 0:00:52.9]} 41.
Ke3 {[%clk 0:00:14.8]} 41... Kxc3 {[%clk 0:00:53.5]} 42. Rf2 {[%clk 0:00:12.8]}
42... Ne5 {[%clk 0:00:54.2]} 43. Rf5 {[%clk 0:00:13.1]} 43... Nc4+ {[%clk
0:00:54.4]} 44. Ke2 {[%clk 0:00:11.8]} 44... b4 {[%clk 0:00:55.2]} 45. Rf3+
{[%clk 0:00:11.1]} 45... Kc2 {[%clk 0:00:56.1]} 46. Rf4 {[%clk 0:00:11.1]} 46...
Bb5 {[%clk 0:00:57.4]} 47. Ke1 {[%clk 0:00:10.9]} 47... b3 {[%clk 0:00:58.2]}
48. Rf2+ {[%clk 0:00:11.5]} 48... Kc1 {[%clk 0:00:59.3]} 49. Rf5 {[%clk
0:00:11]} 49... Ba6 {[%clk 0:00:58.1]} 50. Rf2 {[%clk 0:00:08.9]} 50... b2
{[%clk 0:00:58.8]} 51. Rxb2 {[%clk 0:00:09.6]} 51... Kxb2 {[%clk 0:00:59.2]} 52.
Kf2 {[%clk 0:00:11.5]} 52... Kc3 {[%clk 0:01:00.5]} 53. Kf3 {[%clk 0:00:12.6]}
53... Kd4 {[%clk 0:01:02]} 54. Kf4 {[%clk 0:00:13.8]} 54... Nd6 {[%clk 0:01:02]}
55. h4 {[%clk 0:00:15.7]} 55... h5 {[%clk 0:01:00.8]} 56. g4 {[%clk 0:00:17.6]}
56... hxg4 {[%clk 0:01:00.5]} 57. Kxg4 {[%clk 0:00:19.5]} 57... Ke5 {[%clk
0:01:00.2]} 58. Kg5 {[%clk 0:00:20.6]} 58... Be2 {[%clk 0:00:58.9]} 59. Kg6
{[%clk 0:00:19.8]} 59... Nf5 {[%clk 0:01:00.2]} 60. Kf7 {[%clk 0:00:18.4]} 60...
Bh5+ {[%clk 0:00:57.8]} 61. Kg8 {[%clk 0:00:18]} 61... Kf6 {[%clk 0:00:58.3]}
62. Kh7 {[%clk 0:00:18.6]} 62... Nxh4 {[%clk 0:00:58.9]} 63. Kg8 {[%clk
0:00:19.1]} 63... Bf7+ {[%clk 0:00:55.4]} 64. Kf8 {[%clk 0:00:21]} 64... Ng6#
{[%clk 0:00:56]} 0-1

[Event "***Titled Tuesday 3|2 Blitz"]
[Site "Chess.com"]
[Date "2017.02.07"]
[Round "5"]
[White "HouseOfDurin"]
[Black "Wolverine_master"]
[Result "1/2-1/2"]
[WhiteElo "1901"]
[BlackElo "1980"]
[TimeControl "180+2"]
[EndTime "14:13:21 PST"]
[Termination "Game drawn - insufficient material"]

1. d4 {[%clk 0:03:02]} 1... Nf6 {[%clk 0:02:59.9]} 2. Bg5 {[%clk 0:03:02.9]}
2... c5 {[%clk 0:02:56.2]} 3. Bxf6 {[%clk 0:03:03]} 3... exf6 {[%clk 0:02:56.6]}
4. c3 {[%clk 0:02:58.1]} 4... g6 {[%clk 0:02:57]} 5. g3 {[%clk 0:02:55.4]} 5...
Bg7 {[%clk 0:02:57]} 6. Bg2 {[%clk 0:02:56.4]} 6... O-O {[%clk 0:02:57.6]} 7.
dxc5 {[%clk 0:02:40.8]} 7... a5 {[%clk 0:02:53.7]} 8. e3 {[%clk 0:01:59.5]} 8...
Na6 {[%clk 0:02:53.3]} 9. Qd5 {[%clk 0:01:41.8]} 9... Qc7 {[%clk 0:02:45.5]} 10.
Na3 {[%clk 0:01:36.3]} 10... Qxc5 {[%clk 0:02:41.4]} 11. Nb5 {[%clk 0:01:11.4]}
11... f5 {[%clk 0:02:12.3]} 12. Ne2 {[%clk 0:01:02.7]} 12... Qxd5 {[%clk
0:02:07]} 13. Bxd5 {[%clk 0:01:04.6]} 13... Nc5 {[%clk 0:02:07.9]} 14. O-O-O
{[%clk 0:00:54.2]} 14... a4 {[%clk 0:02:02.9]} 15. Rd2 {[%clk 0:00:27.3]} 15...
Ra5 {[%clk 0:02:00]} 16. Nd6 {[%clk 0:00:24.4]} 16... b5 {[%clk 0:01:54.9]} 17.
Nd4 {[%clk 0:00:21]} 17... Bxd4 {[%clk 0:01:35]} 18. Rxd4 {[%clk 0:00:20.7]}
18... Ne6 {[%clk 0:01:24.1]} 19. Rb4 {[%clk 0:00:20.3]} 19... Nc7 {[%clk
0:01:16.2]} 20. Rd1 {[%clk 0:00:19]} 20... Na6 {[%clk 0:01:01.3]} 21. Rxb5
{[%clk 0:00:19.1]} 21... Rxb5 {[%clk 0:01:01.4]} 22. Nxb5 {[%clk 0:00:21]} 22...
Nc5 {[%clk 0:00:52.7]} 23. Nd6 {[%clk 0:00:20.8]} 23... Ba6 {[%clk 0:00:51.4]}
24. c4 {[%clk 0:00:19.1]} 24... Kg7 {[%clk 0:00:48.4]} 25. Kc2 {[%clk 0:00:17]}
25... f6 {[%clk 0:00:31.6]} 26. b4 {[%clk 0:00:11.7]} 26... axb3+ {[%clk
0:00:31.6]} 27. axb3 {[%clk 0:00:13]} 27... Rb8 {[%clk 0:00:33.5]} 28. Rb1
{[%clk 0:00:10.8]} 28... Rb6 {[%clk 0:00:32.6]} 29. b4 {[%clk 0:00:02.5]} 29...
Ne6 {[%clk 0:00:11.3]} 30. Ne8+ {[%clk 0:00:03.2]} 30... Kf8 {[%clk 0:00:11.5]}
31. Bxe6 {[%clk 0:00:04.5]} 31... Rxe6 {[%clk 0:00:09.9]} 32. Nc7 {[%clk
0:00:05.4]} 32... Rc6 {[%clk 0:00:10.6]} 33. Nxa6 {[%clk 0:00:06.5]} 33... Rxa6
{[%clk 0:00:11.3]} 34. b5 {[%clk 0:00:08]} 34... Rb6 {[%clk 0:00:07.8]} 35. c5
{[%clk 0:00:08.8]} 35... Rb8 {[%clk 0:00:08.6]} 36. b6 {[%clk 0:00:09.4]} 36...
Ke7 {[%clk 0:00:09.4]} 37. Kc3 {[%clk 0:00:10.9]} 37... Kd8 {[%clk 0:00:07.4]}
38. Kc4 {[%clk 0:00:11.2]} 38... Kc8 {[%clk 0:00:07.9]} 39. Kb5 {[%clk
0:00:12.5]} 39... Ra8 {[%clk 0:00:07.8]} 40. c6 {[%clk 0:00:12.1]} 40... dxc6+
{[%clk 0:00:08]} 41. Kxc6 {[%clk 0:00:14]} 41... Ra2 {[%clk 0:00:08.9]} 42. Rd1
{[%clk 0:00:13.2]} 42... Rc2+ {[%clk 0:00:09]} 43. Kd6 {[%clk 0:00:13.8]} 43...
Rxf2 {[%clk 0:00:08.6]} 44. Ke6 {[%clk 0:00:13.1]} 44... Rxh2 {[%clk 0:00:08.8]}
45. Kxf6 {[%clk 0:00:13.9]} 45... Kb7 {[%clk 0:00:10.3]} 46. Rd6 {[%clk
0:00:13.5]} 46... Rg2 {[%clk 0:00:10.5]} 47. Kg7 {[%clk 0:00:12]} 47... Rxg3
{[%clk 0:00:11.1]} 48. Kxh7 {[%clk 0:00:13.2]} 48... g5 {[%clk 0:00:11.8]} 49.
Kg6 {[%clk 0:00:13.2]} 49... g4 {[%clk 0:00:12.4]} 50. Kxf5 {[%clk 0:00:13.5]}
50... Rxe3 {[%clk 0:00:13.5]} 51. Kxg4 {[%clk 0:00:14.7]} 51... Rb3 {[%clk
0:00:14.7]} 52. Kf5 {[%clk 0:00:15.7]} 52... Rxb6 {[%clk 0:00:15.1]} 53. Rxb6+
{[%clk 0:00:17.6]} 53... Kxb6 {[%clk 0:00:16.3]} 1/2-1/2